Cogmind - Beta 13 @@@ ROGUE MODE // 2024.05.08 @ 00:36:09 Player: JP Result: Self-destructed Performance ------------- Evolutions (1) 500 Regions Visited (3) 600 Robots Destroyed (32) 160 Value Destroyed (716) 716 Prototype IDs (0) 0 Alien Tech Used (0) 0 Bonus (39) 39 TOTAL SCORE: 2015 Bonus ------- Follower Combat Kills 39 Cogmind --------- Core Integrity 278/400 Matter 159/300 Energy 250/250 System Corruption 1% Temperature Cool (41) Movement Hovering (116) Ox1 Location -9/Materials Parts ------- > --- POWER (1) -------- Ion Engine > --- PROPULSION (3) --- Airjet Airjet > --- UTILITY (3) ------ Medium Storage Unit Medium Armor Plating > --- WEAPON (2) ------- Autogun Autogun > --- INVENTORY (10) --- Light Ion Engine Aluminum Leg Aluminum Leg Small Storage Unit Visual Processing Unit Signal Interpreter Signal Interpreter Autogun Autogun Peak State ------------ > --- POWER ------------ Light Deuterium Engine > --- PROPULSION ------- Airjet Airjet Airjet > --- UTILITY ---------- Medium Storage Unit Sensor Array Medium Armor Plating > --- WEAPON ----------- Small Laser Autogun > --- INVENTORY -------- Light Ion Engine Airjet Small Storage Unit Visual Processing Unit Signal Interpreter Signal Interpreter Medium Armor Plating [Rating: 20] Favorites ----------- Power Ion Engine Engine Ion Engine Propulsion Aluminum Leg Leg Aluminum Leg Wheel Wheel Hover Unit Airjet Utility Medium Storage Unit Device Sensor Array Storage Medium Storage Unit Protection Medium Armor Plating Weapon Autogun Energy Gun Small Laser Ballistic Gun Autogun Ballistic Cannon Light Cannon Launcher Grenade Launcher Build | -11 -10 -10 -9 ------- Run | Yrd Mat Min Mat Slots Evolved 2 | . . . 2 Power . | . . . . Propulsion 1 | . . . 1 Utility 1 | . . . 1 Weapon . | . . . . Parts Attached 35 | 6 8 7 14 Power 4 | 1 . 2 1 Engine 4 | 1 . 2 1 Core . | . . . . Reactor . | . . . . Propulsion 11 | 3 . 1 7 Treads . | . . . . Leg 4 | 2 . . 2 Wheel 2 | 1 . 1 . Hover 5 | . . . 5 Flight . | . . . . Utility 6 | . 3 . 3 Device 2 | . 1 . 1 Storage 2 | . 2 . . Processor . | . . . . Hackware . | . . . . Protection 2 | . . . 2 Artifact . | . . . . Weapon 14 | 2 5 4 3 Energy Gun 4 | 2 . 1 1 Energy Cannon . | . . . . Ballistic Gun 6 | . 2 2 2 Ballistic Cannon 2 | . 2 . . Launcher 2 | . 1 1 . Special Weapon . | . . . . Impact Weapon . | . . . . Slashing Weapon . | . . . . Piercing Weapon . | . . . . Special Melee Weapon . | . . . . Unidentified Prototypes . | . . . . Parts Lost 13 | . . 7 6 Power 2 | . . 1 1 Propulsion 4 | . . 2 2 Utility 3 | . . 1 2 Weapon 4 | . . 3 1 Highest Loss Streak 4 | . . 4 3 To Critical Strikes . | . . . . Average Slot Usage (%) 86 | . 91 79 86 Engine 11 | . 14 9 10 Leg 16 | . 28 18 . Wheel 1 | . . 6 . Hover 7 | . . . 24 Device 7 | . 8 4 9 Storage 11 | . 11 14 11 Protection 3 | . . . 9 Energy Gun 9 | . 16 1 7 Ballistic Gun 12 | . 4 23 13 Ballistic Cannon 2 | . 6 . . Naked Turns . | . . . . Heaviest Build 29 | 7 22 22 29 Greatest Support 24 | 20 20 20 24 Greatest Overweight (x) 6 | . 1 6 6 Average Overweight (x) . | . . 1 1 Largest Inventory Capacity 10 | 5 10 10 10 Average Capacity 9 | 5 8 10 10 Most Carried 10 | 5 10 10 10 Average Carried 7 | 4 6 7 8 Final Capacity 10 | 5 10 10 10 Final Carried 10 | 4 10 6 9 Class Distribution -------------------- 100% | Mutant Dominant Class ---------------- Mutant | -10/Materials Mutant | -10/Mines Mutant | -9/Materials Resources | -11 -10 -10 -9 ----------- Run | Yrd Mat Min Mat Matter Collected 872 | 41 285 195 351 Remotely . | . . . . Salvage Created 972 | . 332 165 475 Parts 57 | . 27 6 24 Haulers Intercepted 2 | . 2 . . Recyclers Shooed . | . . . . Parts Field Recycled . | . . . . Retrieved Matter . | . . . . Parts Self-Destructed . | . . . . Prevented . | . . . . Kills | -11 -10 -10 -9 ------- Run | Yrd Mat Min Mat Combat Hostiles Destroyed 29 | . 9 10 10 Guns 22 | . 4 10 8 Cannons 2 | . 2 . . AOE 5 | . 3 . 2 Classes Destroyed 7 | . 5 1 1 Worker 2 | . 1 1 . Hauler 2 | . 2 . . Watcher 3 | . 3 . . Swarmer 12 | . 6 6 . Grunt 12 | . 3 . 9 Sentry 1 | . . . 1 Assembled 4 | . . 4 . Best Kill Streak 6 | . 4 6 4 Combat Bots Only 6 | . 4 6 4 Max Kills in Single Turn 2 | . 2 2 2 Gunslinging 1 | . . 1 . Exploded 2 | . 2 . 2 Melee . | . . . . Uniques/NPCs Destroyed . | . . . . Combat | -11 -10 -10 -9 -------- Run | Yrd Mat Min Mat Hostile Shots Fired 154 | . 42 38 74 Missed 38 | . 12 7 19 Damage Taken 1656 | . 294 626 736 Core 236 | . 39 75 122 Absorbed by Shields . | . . . . Core Remaining (%) 77 | 100 . 54 . Volleys Fired 112 | . 38 28 46 Largest 2 | . 2 2 2 Hottest 80 | . 80 53 63 Shots Fired 198 | . 73 50 75 Gun 179 | . 56 48 75 Cannon 14 | . 14 . . Launcher 5 | . 3 2 . Special . | . . . . Kinetic 118 | . 14 48 56 Thermal 75 | . 56 . 19 Explosive 5 | . 3 2 . Electromagnetic . | . . . . Robot Hit Streak 7 | . 5 5 7 Robot Miss Streak 6 | . 6 4 5 Penetration Max . | . . . . Secondary Targets 2 | . . 2 . Max Gunslinging Chain 1 | . . 1 . Shots Hit Robots 100 | . 26 25 49 Core Hits 56 | . 21 13 22 Critical Kills . | . . . . Critical Parts Destroyed . | . . . . Critical Strikes . | . . . . Melee Attacks . | . . . . Impact . | . . . . Slashing . | . . . . Piercing . | . . . . Sneak Attacks . | . . . . Combat Hostiles . | . . . . Follow-up Attacks . | . . . . Damage Inflicted 1718 | . 469 404 845 Guns 1332 | . 219 383 730 Cannons 116 | . 116 . . Explosions 270 | . 134 21 115 Melee . | . . . . Ramming . | . . . . Kinetic 1152 | . 116 383 653 Thermal 296 | . 219 . 77 Explosive 155 | . 134 21 . Electromagnetic 115 | . . . 115 Impact . | . . . . Slashing . | . . . . Piercing . | . . . . Highest Corruption 1 | . . . 1 Average Corruption 1 | . . . 1 Corruption Purged . | . . . . Corruption Blocked . | . . . . Effects 1 | . . . 1 Matter Fused 1 | . . . 1 Overload Shots . | . . . . Overflow Damage . | . . . . Projectiles . | . . . . Explosions . | . . . . Melee . | . . . . Knockbacks . | . . . . Impact . | . . . . Kinetic . | . . . . Secondary . | . . . . Self-Inflicted Damage 59 | . 18 . 41 Shots 3 | . 1 . 2 Rammed . | . . . . Targets Rammed . | . . . . Kicked . | . . . . Crushed . | . . . . Highest Temperature 198 | . 198 12 141 Average Temperature 47 | . 56 5 50 Received Heat Transfer 468 | . 60 . 408 Siege Activations . | . . . . Robots Corrupted . | . . . . Combat Hostiles . | . . . . Parts Fried . | . . . . Impact Corruptions . | . . . . Robots Melted . | . . . . Combat Hostiles . | . . . . Parts Melted 1 | . . . 1 Heat Transferred 675 | . 500 . 175 Parts Sabotaged . | . . . . Parts Stolen . | . . . . Parts Stripped . | . . . . Power Chain Reactions . | . . . . Alert | -11 -10 -10 -9 ------- Run | Yrd Mat Min Mat Peak Influence 379 | . 250 206 379 Initial 76 | . . 76 74 Average 191 | . 169 189 238 Maximum Alert Level 1 | . 1 1 1 Low Security (%) 56 | 100 62 61 40 Level 1 43 | . 37 38 59 Level 2 . | . . . . Level 3 . | . . . . Level 4 . | . . . . Level 5 . | . . . . High Security . | . . . . Max Security . | . . . . Squads Dispatched 4 | . 2 . 2 Investigation 1 | . 1 . . Extermination . | . . . . Reinforcement 3 | . 1 . 2 Assault . | . . . . Garrison . | . . . . Intercept . | . . . . Searches Triggered . | . . . . Construction Impeded . | . . . . Haulers Reinforced . | . . . . Active Scanning Responses . | . . . . Cargo Convoy Interrupts . | . . . . Stealth | -11 -10 -10 -9 --------- Run | Yrd Mat Min Mat Distress Signals 2 | . 2 . . Communications Jammed . | . . . . Distress Signals . | . . . . Times Spotted 53 | . 16 21 16 Peak Tracking Total 7 | . 4 7 5 Tactical Retreats 4 | . 1 2 1 Traps | -11 -10 -10 -9 ------- Run | Yrd Mat Min Mat Traps Triggered . | . . . . Indirectly . | . . . . Trap Hack Attempts . | . . . . Triggered . | . . . . Disarmed . | . . . . Reprogrammed . | . . . . Reused . | . . . . Traps Extracted . | . . . . Installed . | . . . . Triggered . | . . . . Machines | -11 -10 -10 -9 ---------- Run | Yrd Mat Min Mat Machines Disabled 5 | . 1 . 4 Max in Single Turn 3 | . 1 . 3 Machines Repaired . | . . . . Machines Dismantled . | . . . . Machines Sabotaged . | . . . . Overloaded Fab Kills . | . . . . Hacking | -11 -10 -10 -9 --------- Run | Yrd Mat Min Mat Machines Accessed 6 | . 4 . 2 Terminals 6 | . 4 . 2 Fabricators . | . . . . Repair Stations . | . . . . Recycling Units . | . . . . Scanalyzers . | . . . . Garrison Access . | . . . . Total Hacks 12 | . 9 . 3 Successful . | . . . . Failed 12 | . 9 . 3 Catastrophic 5 | . 4 . 1 Database Lockouts . | . . . . Manual 10 | . 8 . 2 Terminals 12 | . 9 . 3 Fabricators . | . . . . Repair Stations . | . . . . Recycling Units . | . . . . Scanalyzers . | . . . . Garrison Access . | . . . . Terminal Hacks . | . . . . Fabricator Hacks . | . . . . Repair Station Hacks . | . . . . Recycling Unit Hacks . | . . . . Scanalyzer . | . . . . Garrison Access Hacks . | . . . . Unauthorized Hacks . | . . . . Terminals . | . . . . Fabricators . | . . . . Repair Stations . | . . . . Recycling Units . | . . . . Scanalyzers . | . . . . Garrison Access . | . . . . Data Cores Recovered . | . . . . Used . | . . . . Hacking Detections 6 | . 4 . 2 Full Trace Events 2 | . 2 . . Feedback Events . | . . . . Feedback Blocked . | . . . . Robot Schematics Acquired . | . . . . Robots Built . | . . . . Authchips . | . . . . Time . | . . . . Total Robot Build Rating . | . . . . Part Schematics Acquired . | . . . . Parts Built . | . . . . Authchips . | . . . . Time . | . . . . Total Part Build Rating . | . . . . Parts Repaired . | . . . . Time . | . . . . Parts Recycled . | . . . . Recycled Matter . | . . . . Retrieved Matter . | . . . . Retrieved Components . | . . . . Parts Scanalyzed . | . . . . Part Schematics Acquired . | . . . . Parts Damaged . | . . . . Bothacking | -11 -10 -10 -9 ------------ Run | Yrd Mat Min Mat Used RIF Installer . | . . . . Robots Hacked . | . . . . Non-combat . | . . . . Combat . | . . . . Robot Hacks Applied . | . . . . Relay Couplers Released . | . . . . Fabnet Peak Effective % . | . . . . Robots Rewired . | . . . . Allies Hacked . | . . . . Hacks Repelled . | . . . . Allies | -11 -10 -10 -9 -------- Run | Yrd Mat Min Mat Total Allies 3 | . . 3 . Largest Group 3 | . . 3 2 Highest-Rated Group 40 | . . 40 32 Highest-Rated Ally 16 | . . 16 16 Total Orders . | . . . . Ally Attacks 33 | . . 31 2 Total Damage 291 | . . 275 16 Kills 4 | . . 4 . Allies Corrupted . | . . . . Allies Melted . | . . . . Intel | -11 -10 -10 -9 ------- Run | Yrd Mat Min Mat Robot Analysis Total . | . . . . Derelict Logs Recovered 1 | . . 1 . Drone Launches . | . . . . Drone Recoveries . | . . . . Exploration | -11 -10 -10 -9 ------------- Run | Yrd Mat Min Mat Turns Passed 1348 | 42 539 339 428 Spaces Moved 778 | 34 311 212 221 Core 34 | 12 . 16 6 Treads . | . . . . Legs 399 | 13 311 75 . Wheels 130 | 9 . 121 . Hover 215 | . . . 215 Flight . | . . . . Fastest Speed 50 | 50 120 95 52 Average Speed 126 | 84 130 124 129 Slowest Speed 350 | 120 190 350 350 Overloaded Moves . | . . . . Propulsion Burnouts . | . . . . Robots Hopped . | . . . . Cave-ins Triggered . | . . . . Exploration Rate (%) 29 | 4 48 46 20 Regions Visited 3 Branch Regions 1 Pre-discovered Areas . | . . . . Known Exits Taken . | . . . . Unknown Exits Taken 3 | 1 1 1 . Scrap Searched 1 | . . 1 . Spaces Dug . | . . . . Terrain Destroyed 30 | . 19 11 . Melee . | . . . . Projectile . | . . . . AOE 30 | . 19 11 . Terrain Rammed . | . . . . Walls Destroyed . | . . . . Machines Disabled . | . . . . Actions | -11 -10 -10 -9 --------- Run | Yrd Mat Min Mat Total 962 | 45 370 247 300 Wait 1 | . 1 . . Move 775 | 33 310 211 221 Hop . | . . . . Pick Up 28 | 5 10 1 12 Fast Attach 9 | 4 1 . 4 Attach 19 | 2 2 5 10 Detach 3 | 1 . . 2 Swap 7 | . 5 2 . Drop 8 | . 3 . 5 Fire 112 | . 38 28 46 Melee . | . . . . Ram . | . . . . Kick . | . . . . Crush . | . . . . Escape Stasis . | . . . . Rewire . | . . . . Trap . | . . . . Miscellaneous . | . . . . Route ------- -11/Scrapyard -10/Materials -10/Mines -9/Materials History --------- Turn | Location | Event 4 | -11/Scrapyard | Discovered new exit (range 16) 43 | -11/Scrapyard | Entered Materials 297 | -10/Materials | Discovered new exit (range 11) 334 | -10/Materials | Build established: Mutant 582 | -10/Materials | Entered Mines 623 | -10/Mines | Discovered new exit (range 10) 668 | -10/Mines | Assembled infested the area 733 | -10/Mines | Lost 4 parts (1n1u2w) 789 | -10/Mines | Assisted by bots powering up and referring to "LRC-V3" 921 | -10/Mines | Entered Materials 921 | -9/Materials | Accompanied by 2 allies 921 | -9/Materials | Evolved 2 slots: Propulsion x1, Utility x1 1132 | -9/Materials | Lost 3 parts (1p1u1w) 1349 | -9/Materials | Self-destructed Last Messages --------------- G-34 Mercenary destroyed. R-06 Scavenger collects Corrupted Sml. Laser. R-06 Scavenger collects Corrupted Heat Sink. Acquired 34 matter. R-06 Scavenger collects Aluminum Leg. R-06 Scavenger collects Corrupted Aluminum Leg. U-05 Engineer repairs door. U-05 Engineer lays Concrete. Dropped Autogun. Dropped Sml. Laser. Acquired Autogun. Dropped Sml. Laser. Acquired Autogun. Dropped Airjet. Acquired Airjet. K-01 Serf collects debris. System corrupted: Matter fused (-6). Sensor Array destroyed. Critical hit (Burn: +37). G-47 Trooper destroyed. Map ----- +----------------------------------------------------+ | ?????????????????????????????????????# ########### | | ?????????????????????????????????????# # # | | ??????????????????????????############ # ! # | | ??????????????????????????# ## # %= # | | ??????????????????????????# ## # = # | | ??????????????????????????# # + "" """ # | | ??????????????????????????# # # """ """ # | | ??????????????????????????# % / + """ """ # | | ??????????????????????????# ! / %# # # | | ??????????????????????????# =# ########### | | ??????????????????????????# # # ###### | | ??????????????????????????########### # "" # """ | | ??????????????????????????? ??????# # T" # """ | | ???????????????????????????? ?????# # "" # """ | | ????????????????????????????? ###### # # | | ?????????????????????????????? + T # [[[# | | ???????????????????????????????# # [ # | | ???????????????????????????????# / [ # ! | | ???????????????????????????????# // # [[ #? | | ???????????????????????????????+ / #########+# | | ???????????????????????????????# | | ?????????????????############### | | ??????????????? !Y= #########+####### | | ??????????????????????##g o####??#! # | | ???????????????????????# #?????# # | | ???????????????????????#!@!!!!#?????# # | | ???????????????????????#!!!!!!#?????# # | | ???????????????????????########?????# / # | | ????????????????????????????????????############## | | | | | | | | | | | | | | | | | | | | | | | | | | | | | | | | | | | | | | | | | | | +----------------------------------------------------+ Best States ------------- Heat Dissipation 28 Energy Generation 14 Energy Capacity 250 Matter Stores 300 Matter Capacity 300 Sight Range 16 Robot Scan Range 14 Terrain Scan Density 10 Armor Coverage 225 Evasion (%) 55 Item Schematics ----------------- None Robot Schematics ------------------ None Fabricated ------------ Nothing Alien Tech Used ----------------- None Achievements -------------- I Survived The Infestation Challenges ------------ None Game ------ Seed MicroAlloyTendrils Manual? 0 Play Time 00:17:42 Cumulative 6.1 hours Start 2024.05.08 @ 00:19:50 End 2024.05.08 @ 00:36:09 Sessions 1 Manual Loads 0 Difficulty Rogue Special Mode None Game No. 9 Rogue 9 Adventurer 0 Explorer 0 Win Type - Total 0 Types 0/0/0/0/0/0/0/0/0 Lore% 6 Gallery% 14 Achievement% 14 Wizard Run 0 Options --------- Layout 1 ASCII 0 Keyboard 0 Movement Mouse Keybinds 0 Fullscreen 2 Font 24/Smallcaps Map View 50x35 Zoom Use 0% Tactical HUD 0 Map Filters NONE Filters NONE Steam 1 RUN: 9424db2d-d966-47bf-8c0f-698a2811ffb7